bitfinex-derivatives/quotes_SOLF0:USTF0_20241231
["timestamp","ask_amount","ask_price","bid_price","bid_amount"]
[1735656650693,1.5628,197.47,197.34,290.38]
[1735656650694,1.5628,197.47,197.36,12.32568877]
[1735656651195,12.32568877,197.51,197.39,299.32568877]
[1735656651395,12.32568877,197.51,197.4,4.9004]
[1735656651794,12.32568877,197.51,197.47,2.5351]
[1735656651991,4.1328,197.52,197.4,4.9004]
[1735656652193,4.1328,197.52,197.47,2.5351]
[1735656652494,1.5982,197.52,197.4,4.9004]
[1735656652999,12.32568877,197.51,197.4,4.9004]
[1735656653297,12.32568877,197.45,197.36,6.92302325]
[1735656653497,12.32568877,197.45,197.35,6.92302325]
[1735656653898,12.32568877,197.45,197.38,2.5363]
[1735656654301,2.5357,197.43,197.38,2.5363]
[1735656654598,2.5357,197.43,197.35,6.92302325]
[1735656654900,2.5357,197.43,197.38,2.5362]
[1735656655401,2.5357,197.43,197.34,3.38]
[1735656655602,12.32568877,197.45,197.39,2.5362]
[1735656655794,2.5358,197.42,197.39,2.5362]
[1735656656210,12.32568877,197.42,197.37,2.5363]
[1735656656498,12.32568877,197.42,197.32,1.5745]
[1735656656704,2.5362,197.39,197.35,2.5366]
[1735656656903,4.9812,197.41,197.32,1.5745]
[1735656657097,12.32568877,197.39,197.32,1.5745]
[1735656657298,2.5365,197.37,197.33,2.5369]
[1735656658496,12.32568877,197.39,197.27,15.70568877]
[1735656658703,2.5366,197.36,197.27,12.32568877]
[1735656658899,12.32568877,197.39,197.27,12.32568877]
[1735656659399,14.86188877,197.39,197.35,2.5367]
[1735656661113,1.5997,197.4,197.27,12.32568877]
[1735656661307,7.5171,197.41,197.27,12.32568877]
[1735656661510,7.5171,197.41,197.3,12.32568877]
[1735656661712,1.6012,197.41,197.38,2.5362]
[1735656661904,1.5951,197.47,197.33,12.32568877]
[1735656662099,4.9751,197.47,197.36,12.32568877]
[1735656662312,3.38,197.47,197.43,2.5356]
[1735656662510,12.32568877,197.48,197.43,2.5356]
[1735656662703,21.37108877,197.51,197.36,302.70568877]
[1735656662908,15.45638877,197.51,197.39,12.32568877]
[1735656663107,15.45638877,197.51,197.39,299.32568877]
[1735656663309,15.45638877,197.51,197.36,15.70568877]
[1735656663516,15.45638877,197.51,197.36,302.70568877]
[1735656663707,2.5349,197.5,197.45,2.5353]
[1735656663903,15.45638877,197.51,197.39,12.32568877]
[1735656664106,1.5356,197.51,197.39,12.32568877]
[1735656664304,3.38,197.52,197.49,2.5348]
[1735656664807,12.32568877,197.54,197.43,1.6134]
[1735656665005,12.32568877,197.54,197.43,288.6134]
[1735656665508,12.32568877,197.54,197.49,2.5348]
[1735656667414,12.32568877,197.51,197.43,1.6134]
[1735656667611,15.70568877,197.51,197.41,42.54954666]
[1735656667910,2.5349,197.49,197.44,2.5354]
[1735656668124,2.5349,197.49,197.4,3.38]
[1735656668307,12.32568877,197.48,197.38,8.46652325]
[1735656668513,12.32568877,197.45,197.39,2.5361]
[1735656668712,12.32568877,197.45,197.38,6.92302325]
[1735656669010,12.32568877,197.45,197.35,10.30302325]
[1735656669310,2.5357,197.43,197.35,10.30302325]
[1735656669619,12.32568877,197.42,197.35,6.92302325]
[1735656669810,14.86158877,197.42,197.33,1.5435]
[1735656670209,2.5359,197.42,197.36,2.5364]
[1735656670407,2.5359,197.42,197.33,1.5435]
[1735656671110,2.5359,197.42,197.35,2.5366]
[1735656671310,2.5359,197.42,197.33,1.5435]
[1735656671809,2.5357,197.43,197.38,2.5363]
[1735656672013,19.74601503,197.44,197.33,1.5435]
[1735656672311,22.28151503,197.44,197.39,2.5361]
[1735656672511,19.74601503,197.44,197.33,1.5435]
[1735656672707,19.74601503,197.44,197.3,287.0]
[1735656672903,2.5358,197.42,197.37,2.5363]
[1735656673619,19.74601503,197.44,197.31,1.5122]
[1735656673810,2.5357,197.43,197.31,1.5122]
[1735656674215,2.5357,197.43,197.37,2.5363]
[1735656674414,2.5358,197.42,197.37,2.5363]
[1735656674716,19.74601503,197.44,197.31,1.5122]
[1735656674916,2.5359,197.41,197.36,2.5364]
[1735656675111,19.74601503,197.44,197.31,1.5122]
[1735656675615,2.5359,197.42,197.37,2.5363]
[1735656675815,2.5359,197.42,197.31,1.5122]
[1735656676019,19.74601503,197.44,197.31,1.5122]
[1735656676207,2.5362,197.4,197.36,2.5365]
[1735656676618,2.5363,197.39,197.31,1.5122]
[1735656676814,23.12601503,197.41,197.31,1.5122]
[1735656677017,1.5795,197.4,197.3,287.0]
[1735656677211,1.5795,197.4,197.27,85.21790679]
[1735656677410,1.5295,197.39,197.27,85.21790679]
[1735656677615,2.5367,197.36,197.27,81.83790679]
[1735656678121,1.5295,197.39,197.34,2.5368]
[1735656679022,19.74601503,197.38,197.27,81.83790679]
[1735656679217,2.5367,197.35,197.27,81.83790679]
[1735656679413,3.38,197.36,197.31,2.5371]
[1735656680523,3.38,197.36,197.25,1.5308]
[1735656681219,19.74601503,197.41,197.27,19.74601503]
[1735656681717,19.74601503,197.41,197.27,287.0]
[1735656682218,19.74601503,197.41,197.27,306.74601503]
[1735656682423,19.74601503,197.44,197.27,306.74601503]
[1735656682716,19.74601503,197.47,197.3,19.74601503]
[1735656682921,4.1413,197.48,197.44,2.5355]
[1735656683130,19.74601503,197.5,197.37,3.38]
[1735656683317,19.74601503,197.5,197.38,1.5093]
[1735656683516,2.5353,197.46,197.41,2.5358]
[1735656683722,19.74601503,197.5,197.38,1.5093]
[1735656683919,4.6612,197.55,197.38,1.5093]
[1735656684218,2.5347,197.51,197.38,1.5093]
[1735656684918,19.74601503,197.6,197.38,1.5093]
[1735656684919,19.74601503,197.64,197.44,306.74601503]
[1735656685115,3.1283,197.63,197.45,293.3943]
[1735656685521,5.6614,197.63,197.5,2.5347]
[1735656685725,5.6614,197.63,197.51,4.9231]
[1735656686023,3.1283,197.63,197.51,4.9231]
[1735656686227,2.5332,197.62,197.56,2.534]
[1735656686527,3.1283,197.63,197.57,3.38]
[1735656686830,3.1283,197.63,197.58,3.38]
[1735656688421,1.5271,197.63,197.58,3.38]
[1735656688630,19.74601503,197.67,197.58,3.38]
[1735656689020,19.74601503,197.67,197.51,308.28911503]
[1735656689220,19.74601503,197.64,197.52,3.38]
[1735656689920,19.74601503,197.64,197.53,3.38]
[1735656690426,22.27901503,197.64,197.53,3.38]
[1735656690725,19.74601503,197.64,197.53,3.38]
[1735656690922,19.74601503,197.64,197.51,1.5431]
[1735656691125,2.5335,197.6,197.54,2.5342]
[1735656691322,19.74601503,197.64,197.51,1.5431]
[1735656691522,19.74601503,197.58,197.45,3.0143]
[1735656691717,19.74601503,197.58,197.46,3.36]
[1735656693030,21.31271503,197.61,197.46,3.36]
[1735656693328,21.31271503,197.61,197.46,290.36]
[1735656693832,2.534,197.56,197.5,2.5347]
[1735656694028,19.74601503,197.58,197.47,3.36]
[1735656694835,2.534,197.56,197.5,2.5347]
[1735656695630,3.36,197.57,197.45,1.5519]
[1735656695832,19.74601503,197.54,197.45,1.5519]
[1735656696030,22.28041503,197.54,197.48,2.5349]
[1735656696331,3.36,197.57,197.45,1.5519]
[1735656696632,2.5341,197.56,197.5,2.5346]
[1735656696821,3.36,197.57,197.5,2.5346]
[1735656697227,2.5342,197.55,197.51,2.5346]
[1735656698832,3.36,197.57,197.46,3.36]
[1735656699333,1.4773,197.6,197.46,3.36]
[1735656699530,1.4773,197.6,197.46,290.36]
[1735656699922,1.5667,197.61,197.46,310.10601503]
[1735656700122,1.5667,197.61,197.47,2.9726]
[1735656700331,3.36,197.64,197.54,2.5342]
[1735656700627,3.36,197.64,197.54,3.36]
[1735656700834,19.74601503,197.66,197.54,3.36]
[1735656701026,2.9685,197.68,197.55,1.5392]
[1735656701428,2.5321,197.72,197.67,2.5326]
[1735656701634,19.74601503,197.74,197.61,3.36]
[1735656703237,2.5322,197.7,197.63,2.533]
[1735656703535,19.74601503,197.71,197.58,287.0]
[1735656703738,2.5328,197.66,197.59,3.36]
[1735656703930,19.74601503,197.68,197.55,4.8992]
[1735656704132,19.74601503,197.68,197.55,1.5392]
[1735656704336,2.5332,197.62,197.55,2.5341]
[1735656704535,3.36,197.64,197.54,3.36]
[1735656704935,3.36,197.64,197.54,2.5342]
[1735656705638,2.5335,197.6,197.54,2.5342]
[1735656705839,19.74601503,197.62,197.5,1.5861]
[1735656706045,2.534,197.56,197.51,2.5345]
[1735656707337,4.1219,197.59,197.5,1.5861]
[1735656707641,1.5882,197.59,197.5,1.5861]
[1735656708441,1.5882,197.59,197.5,4.1208]
[1735656709035,1.5882,197.59,197.5,1.5861]
[1735656709439,2.5341,197.55,197.5,1.5861]
[1735656709637,2.5341,197.55,197.5,4.1209]
[1735656710044,1.5882,197.59,197.5,4.1209]
[1735656710242,1.5882,197.59,197.5,1.5861]
[1735656710735,1.5882,197.59,197.52,2.5344]
[1735656710946,19.74601503,197.65,197.5,1.5861]
[1735656711241,1.6096,197.64,197.5,1.5861]
[1735656712643,19.74601503,197.62,197.5,1.5861]
[1735656713637,1.6096,197.64,197.44,2.8839476]
[1735656713638,19.74601503,197.59,197.44,2.8839476]
[1735656713942,2.5343,197.54,197.5,2.5347]
[1735656714242,6.3385,197.58,197.44,6.2439476]
[1735656714433,6.3385,197.58,197.44,2.8839476]
[1735656714639,6.3385,197.58,197.44,6.2439476]
[1735656714933,19.74601503,197.56,197.44,2.8839476]
[1735656715234,2.5347,197.51,197.46,2.5353]
[1735656715437,1.5644,197.55,197.46,2.5353]
[1735656715635,2.5348,197.5,197.46,2.5353]
[1735656716569,2.5346,197.51,197.41,3.36]
[1735656716840,3.36,197.53,197.41,3.36]
[1735656717274,2.5346,197.52,197.47,2.5351]
[1735656717492,3.36,197.53,197.41,3.36]
[1735656717867,5.8945,197.53,197.41,3.36]
[1735656718076,1.5644,197.55,197.41,23.10601503]
[1735656718274,1.5644,197.55,197.44,19.74601503]
[1735656718476,1.5644,197.55,197.44,306.74601503]
[1735656718973,1.5644,197.55,197.52,2.5344]
[1735656719479,3.36,197.57,197.47,3.36]
[1735656719666,3.36,197.57,197.54,2.5342]
[1735656720106,5.8939,197.57,197.5,2.5347]
[1735656720267,3.36,197.57,197.48,1.55]
[1735656720469,1.5193,197.58,197.48,1.55]
[1735656721067,1.5193,197.58,197.47,3.36]
[1735656721371,1.5193,197.58,197.44,6.92302325]
[1735656721963,1.5193,197.58,197.43,24.12906976]
[1735656721964,2.5344,197.54,197.49,2.5348]
[1735656722354,1.5193,197.58,197.43,3.36]
[1735656722867,1.5193,197.58,197.42,6.92302325]
[1735656723057,2.5349,197.49,197.45,2.5354]
[1735656723253,3.36,197.54,197.45,2.5354]
[1735656723440,1.5427,197.53,197.45,2.5354]
[1735656723641,2.5349,197.49,197.45,2.5354]
[1735656724040,1.5427,197.53,197.39,27.69209301]
[1735656724041,2.5359,197.42,197.39,27.69209301]
[1735656724244,23.10601503,197.48,197.39,27.69209301]
[1735656724245,3.36,197.43,197.39,27.69209301]
[1735656724553,19.74601503,197.42,197.39,18.01089301]
[1735656724748,19.74601503,197.42,197.38,77.86418384]
[1735656724955,19.74601503,197.39,197.36,83.07627906]
[1735656725159,2.5364,197.37,197.36,83.07627906]
[1735656725458,3.36,197.38,197.3,15.00974847]
[1735656726356,2.5369,197.33,197.3,15.00974847]
[1735656726558,3.36,197.38,197.3,2.5373]
[1735656727058,2.5367,197.36,197.3,2.5373]
[1735656727259,2.5367,197.36,197.27,1.6096]
[1735656727457,3.36,197.38,197.27,1.6096]
[1735656727759,3.36,197.37,197.27,1.6096]
[1735656728060,3.36,197.37,197.33,2.5369]
[1735656728259,19.74601503,197.39,197.27,1.6096]
[1735656728460,2.5359,197.42,197.28,3.36]
[1735656728661,5.8959,197.42,197.28,3.36]
[1735656729062,5.8959,197.42,197.28,290.36]
[1735656729262,3.36,197.42,197.28,290.36]
[1735656729858,3.36,197.42,197.32,2.537]
[1735656730163,2.5352,197.47,197.33,290.38]
[1735656730457,2.5352,197.47,197.42,2.5358]
[1735656730661,2.535,197.49,197.38,3.38]
[1735656730856,19.74601503,197.5,197.39,4.1069]
[1735656731262,2.5355,197.45,197.39,1.5709]
[1735656731561,19.74601503,197.5,197.4,2.536]
[1735656731763,19.74601503,197.5,197.39,1.5709]
[1735656731957,21.25881503,197.54,197.39,288.5709]
[1735656732160,21.25881503,197.54,197.44,2.5354]
[1735656732367,2.5348,197.5,197.39,288.5709]
[1735656732570,23.12601503,197.54,197.47,2.535]
[1735656732769,23.12601503,197.54,197.39,288.5709]
[1735656733168,1.5297,197.59,197.39,4.9509]
[1735656733362,19.74601503,197.53,197.39,4.9509]
[1735656733566,2.5348,197.51,197.39,4.9509]
[1735656733765,19.74601503,197.53,197.44,2.5355]
[1735656734065,2.5348,197.5,197.44,2.5355]
[1735656734374,3.38,197.52,197.44,2.5355]
[1735656734768,2.5348,197.51,197.45,2.5354]
[1735656734968,3.38,197.52,197.45,2.5354]
[1735656735170,3.38,197.52,197.39,4.9509]
[1735656735371,2.5347,197.51,197.46,2.5352]
[1735656737372,2.5347,197.51,197.39,4.9509]
[1735656738472,22.28051503,197.53,197.39,291.9509]
[1735656738670,19.74601503,197.57,197.39,291.9509]
[1735656738862,19.74601503,197.57,197.48,2.535]
[1735656739068,19.74601503,197.57,197.44,3.36]
[1735656739269,2.5343,197.54,197.44,3.36]
[1735656739571,23.10601503,197.57,197.47,2.535]
[1735656739762,19.74601503,197.53,197.42,3.36]
[1735656740469,19.74601503,197.57,197.42,290.36]
[1735656740777,2.5344,197.53,197.47,2.535]
[1735656740970,2.5344,197.53,197.42,3.36]
[1735656741273,2.5347,197.51,197.42,3.36]
[1735656741670,19.74601503,197.54,197.42,3.36]
[1735656741871,2.5349,197.5,197.44,2.5355]
[1735656742368,2.5349,197.5,197.45,2.5354]
[1735656742672,1.5297,197.59,197.42,3.36]
[1735656742871,19.74601503,197.57,197.48,2.535]
[1735656743071,19.74601503,197.57,197.42,290.36]
[1735656743273,19.74601503,197.54,197.42,290.36]
[1735656743571,19.74601503,197.54,197.46,2.5352]
[1735656743775,19.74601503,197.54,197.42,290.36]
[1735656743971,2.5346,197.51,197.42,3.36]
[1735656744165,3.36,197.53,197.46,2.5352]
[1735656744672,2.5347,197.51,197.46,2.5352]
[1735656745269,3.36,197.53,197.46,2.5352]
[1735656745465,2.5346,197.51,197.46,2.5352]
[1735656746174,2.5348,197.5,197.46,2.5352]
[1735656746973,2.5345,197.52,197.48,2.535]
[1735656747778,3.36,197.53,197.39,288.5709]
[1735656747973,2.5347,197.51,197.47,2.5351]
[1735656748673,19.74601503,197.54,197.4,290.36]
[1735656748874,56.16094501,197.64,197.41,23.10601503]
[1735656749080,19.74601503,197.61,197.44,19.74601503]
[1735656749277,19.74601503,197.61,197.45,290.0939]
[1735656749472,19.74601503,197.61,197.46,3.36]
[1735656749680,2.5336,197.59,197.5,2.5347]
[1735656749979,19.74601503,197.61,197.51,1.5113]
[1735656750677,22.27941503,197.61,197.51,1.5113]
[1735656751369,2.5336,197.59,197.55,2.534]
[1735656751571,19.74601503,197.61,197.51,1.5113]
[1735656751776,22.27951503,197.61,197.54,2.5342]
[1735656751974,19.74601503,197.61,197.51,4.8713]
[1735656752671,1.5347,197.69,197.51,4.8713]
[1735656752672,1.5347,197.69,197.51,291.8713]
[1735656753070,40.8063694,197.7,197.52,19.74601503]
[1735656753476,40.8063694,197.7,197.65,2.5327]
[1735656753673,19.74601503,197.7,197.6,3.36]
[1735656753876,19.74601503,197.7,197.61,1.5878]
[1735656754180,2.5328,197.66,197.61,1.5878]
[1735656754578,2.533,197.64,197.59,2.5336]
[1735656754774,19.74601503,197.7,197.55,3.36]
[1735656754975,19.74601503,197.7,197.56,2.9826]
[1735656755182,2.5331,197.63,197.58,2.5337]
[1735656756678,2.533,197.65,197.56,2.9826]
[1735656756878,23.10601503,197.66,197.56,2.9826]
[1735656757586,19.74601503,197.66,197.56,2.9826]
[1735656757881,22.27871503,197.66,197.61,2.5333]
[1735656758385,2.533,197.64,197.59,2.5335]
[1735656758586,19.74601503,197.66,197.56,2.9826]
[1735656758984,2.5332,197.63,197.58,2.5336]
[1735656759180,2.5332,197.63,197.56,2.9826]
[1735656759376,2.5332,197.63,197.53,1.5158]
[1735656759377,23.10601503,197.63,197.53,1.5158]
[1735656759581,23.10601503,197.63,197.54,2.5342]
[1735656759782,23.10601503,197.63,197.53,1.5158]
[1735656760181,2.5336,197.6,197.48,288.4799]
[1735656760383,23.10601503,197.63,197.49,3.36]
[1735656760587,23.10601503,197.63,197.49,4.8339]
[1735656760782,2.5334,197.61,197.5,288.591]
[1735656761384,2.5335,197.6,197.55,2.5341]
[1735656762086,2.5335,197.6,197.56,2.534]
[1735656762384,2.5335,197.6,197.5,288.591]
[1735656762385,3.36,197.63,197.5,288.591]
[1735656762580,3.36,197.63,197.59,2.5335]
[1735656762783,2.5332,197.62,197.54,3.36]
[1735656763087,3.36,197.63,197.57,2.5338]
[1735656763289,23.10601503,197.63,197.54,3.36]
[1735656763889,2.5332,197.62,197.54,3.36]
[1735656764386,2.5336,197.6,197.5,288.591]
[1735656764591,19.74601503,197.6,197.5,1.591]
[1735656764780,23.10601503,197.63,197.56,2.5339]
[1735656764985,2.5332,197.62,197.5,1.591]
[1735656765388,2.5332,197.62,197.57,2.5337]
[1735656765691,25.63911503,197.63,197.5,288.591]
[1735656765886,23.10601503,197.63,197.5,288.591]
[1735656766196,3.36,197.69,197.53,306.74601503]
[1735656766396,23.10601503,197.7,197.54,3.36]
[1735656767090,23.10601503,197.7,197.54,290.36]
[1735656767481,23.10601503,197.7,197.64,2.5329]
[1735656768291,2.5325,197.68,197.64,2.5329]
[1735656769190,23.10601503,197.7,197.62,2.5331]
[1735656769894,2.5327,197.67,197.62,2.5331]
[1735656770094,23.10601503,197.7,197.62,2.5331]
[1735656770292,23.10601503,197.7,197.6,1.5194]
[1735656771392,2.5322,197.7,197.67,2.5326]
[1735656772199,2.5321,197.71,197.66,2.5327]
[1735656772387,27.34031448,197.73,197.66,2.5327]
[1735656772995,2.5323,197.7,197.66,2.5327]
[1735656773294,2.5323,197.7,197.61,3.36]
[1735656773595,2.5323,197.7,197.67,2.5326]
[1735656774190,7.59429945,197.73,197.61,3.36]
[1735656774393,2.5325,197.68,197.6,1.5194]
[1735656774696,12.30741857,197.69,197.6,1.5194]
[1735656774884,7.59429945,197.73,197.6,1.5194]
[1735656774885,12.30741857,197.66,197.6,1.5194]
[1735656775289,12.30741857,197.63,197.58,2.5337]
[1735656775689,12.30741857,197.63,197.57,3.0092]
[1735656775887,2.5334,197.61,197.57,5.543]
[1735656776298,12.30741857,197.63,197.57,5.543]
[1735656776698,2.5333,197.62,197.57,3.0092]
[1735656776892,2.5333,197.62,197.58,2.5337]
[1735656777197,12.30741857,197.63,197.57,3.0092]
[1735656777994,14.84051857,197.63,197.58,2.5336]
[1735656778599,14.84051857,197.63,197.57,3.0092]
[1735656778795,14.84051857,197.63,197.59,2.5336]
[1735656779992,14.84051857,197.63,197.6,2.5334]
[1735656780704,12.30741857,197.63,197.62,2.5332]
[1735656780899,12.30741857,197.63,197.57,3.0092]
[1735656781305,12.30741857,197.63,197.62,2.5332]
[1735656781506,5.8929,197.65,197.62,2.5332]
[1735656782317,12.30741857,197.63,197.57,3.0092]
[1735656782504,12.30741857,197.63,197.55,1.5144]
[1735656782902,2.5338,197.58,197.55,2.5341]
[1735656783207,2.5338,197.58,197.52,3.035]
[1735656783405,12.30741857,197.57,197.51,2.5346]
[1735656783615,12.30741857,197.57,197.49,1.5138]
[1735656783811,12.30741857,197.54,197.49,1.5138]
[1735656784209,12.30741857,197.57,197.49,1.5138]
[1735656784608,2.5343,197.54,197.5,2.5346]
[1735656784810,12.30741857,197.57,197.49,1.5138]
[1735656785211,2.5341,197.55,197.51,2.5345]
[1735656785910,12.30741857,197.57,197.49,1.5138]
[1735656786117,14.84141857,197.57,197.49,1.5138]
[1735656786611,14.84141857,197.57,197.52,2.5344]
[1735656786815,2.5343,197.54,197.46,3.035]
[1735656787013,12.30741857,197.54,197.46,3.035]
[1735656787215,12.30741857,197.54,197.49,2.5348]
[1735656787414,12.30741857,197.54,197.46,3.035]
[1735656787914,3.36,197.58,197.46,3.035]
[1735656787915,12.30741857,197.57,197.46,3.035]
[1735656788411,2.5341,197.55,197.49,2.5349]
[1735656788617,2.5341,197.55,197.46,3.035]
[1735656789010,12.30741857,197.57,197.46,3.035]
[1735656789211,2.5343,197.54,197.46,3.035]
[1735656789917,2.534,197.56,197.51,2.5346]
[1735656790606,12.30741857,197.57,197.46,3.035]
[1735656790807,12.30741857,197.57,197.5,2.5346]
[1735656791217,3.36,197.58,197.5,2.5346]
[1735656791218,2.5344,197.53,197.5,2.5346]
[1735656791516,12.30741857,197.54,197.5,2.5346]
[1735656792419,14.84171857,197.54,197.5,2.5346]
[1735656792619,12.30741857,197.57,197.46,3.035]
[1735656792814,12.30741857,197.6,197.46,290.035]
[1735656793120,12.30741857,197.57,197.46,3.035]
[1735656794020,12.30741857,197.57,197.54,2.5341]
[1735656794608,12.30741857,197.57,197.46,290.035]
[1735656794923,12.30741857,197.6,197.56,2.534]
[1735656795217,12.30741857,197.6,197.47,299.30741857]
[1735656795419,3.36,197.62,197.47,299.30741857]
[1735656795420,3.36,197.62,197.5,12.30741857]
[1735656795610,3.36,197.62,197.51,3.36]
[1735656796111,3.36,197.62,197.52,1.5748]
[1735656796312,12.30741857,197.6,197.52,1.5748]
[1735656797714,14.84091857,197.6,197.56,2.5339]
[1735656797914,14.84091857,197.6,197.52,1.5748]
[1735656797915,12.30741857,197.6,197.52,1.5748]
[1735656798310,2.5337,197.59,197.52,1.5748]
[1735656799119,2.5337,197.59,197.54,2.5342]
[1735656799514,2.5337,197.59,197.52,1.5748]
[1735656799716,2.5337,197.59,197.54,2.5342]
[1735656800022,2.5337,197.59,197.52,1.5748]
[1735656800622,2.5337,197.58,197.54,2.5341]
[1735656801423,2.5336,197.59,197.55,2.5341]
[1735656801624,12.30741857,197.6,197.52,1.5748]
[1735656802621,2.534,197.57,197.53,2.5343]
[1735656802824,12.30741857,197.6,197.52,1.5748]
[1735656803822,14.84101857,197.6,197.56,2.5339]
[1735656804023,12.30741857,197.6,197.52,1.5748]
[1735656805221,14.84091857,197.6,197.52,1.5748]
[1735656805418,12.30741857,197.6,197.52,1.5748]
[1735656806024,2.5337,197.59,197.55,2.534]
[1735656806225,2.5337,197.59,197.52,1.5748]
[1735656807428,2.5337,197.59,197.55,2.534]
[1735656808129,2.5338,197.58,197.55,2.534]
[1735656808429,12.30741857,197.6,197.55,2.534]
[1735656809630,12.30741857,197.6,197.52,1.5748]
[1735656809831,2.5336,197.59,197.52,1.5748]
[1735656810024,12.30741857,197.6,197.52,1.5748]
[1735656810225,2.5332,197.63,197.6,2.5334]
[1735656811133,12.30741857,197.65,197.53,3.36]
[1735656811333,12.30741857,197.62,197.52,1.5748]
[1735656811534,12.30741857,197.59,197.52,1.5748]
[1735656812030,14.84111857,197.59,197.52,1.5748]
[1735656812231,12.30741857,197.59,197.52,1.5748]
[1735656812432,3.36,197.61,197.6,2.5335]
[1735656812632,12.30741857,197.62,197.6,2.5335]
[1735656812927,12.30741857,197.62,197.52,1.5748]
[1735656813123,2.5344,197.53,197.48,2.5349]
[1735656813325,14.84181857,197.53,197.45,20.83489936]
[1735656814337,14.84181857,197.53,197.43,1.4847]
[1735656814536,14.84181857,197.53,197.49,2.5349]
[1735656814832,14.84181857,197.53,197.43,1.4847]
[1735656815232,14.84181857,197.53,197.49,2.5349]
[1735656816133,2.5343,197.54,197.5,2.5347]
[1735656816331,12.30741857,197.56,197.43,17.15211857]
[1735656816738,14.84151857,197.56,197.52,2.5345]
[1735656816935,12.30741857,197.56,197.43,17.15211857]
[1735656818437,2.5341,197.55,197.5,2.5346]
[1735656818833,12.30741857,197.56,197.53,2.5343]
[1735656820542,12.30741857,197.56,197.54,2.5342]
[1735656820939,14.84101857,197.59,197.48,3.36]
[1735656821143,12.30741857,197.59,197.48,290.36]
[1735656821337,12.30741857,197.62,197.48,290.36]
[1735656821543,12.30741857,197.62,197.58,2.5337]
[1735656822543,12.30741857,197.62,197.59,2.5336]
[1735656823042,12.30741857,197.65,197.6,2.5334]
[1735656823634,14.84031857,197.65,197.6,2.5334]
[1735656823938,12.30741857,197.65,197.54,1.4884]
[1735656824139,14.84031857,197.65,197.62,2.5332]
[1735656824341,14.84031857,197.65,197.54,1.4884]
[1735656824534,14.84031857,197.65,197.6,2.5334]
[1735656825139,12.30741857,197.65,197.6,2.5334]
[1735656825339,12.30741857,197.65,197.58,2.5337]
[1735656825748,2.5332,197.63,197.58,2.5337]
[1735656825950,2.5332,197.63,197.56,2.5339]
[1735656826247,2.5335,197.6,197.54,1.4884]
[1735656826548,12.30741857,197.62,197.54,1.4884]
[1735656826747,12.30741857,197.62,197.56,2.5339]
[1735656826944,2.5335,197.6,197.56,2.5339]
[1735656827141,12.30741857,197.59,197.46,325.72852404]
[1735656827453,12.30741857,197.56,197.47,1.533]
[1735656828344,12.30741857,197.56,197.51,2.5345]
[1735656828849,14.84141857,197.56,197.52,2.5345]
[1735656829347,12.30741857,197.56,197.47,1.533]
[1735656829645,2.5342,197.55,197.47,1.533]
[1735656830245,12.30741857,197.56,197.47,1.533]
[1735656830441,12.30741857,197.56,197.52,2.5345]
[1735656830844,12.30741857,197.56,197.47,1.533]
[1735656831046,15.66741857,197.59,197.47,1.533]
[1735656831649,2.5338,197.58,197.53,2.5343]
[1735656832051,12.30741857,197.59,197.5,3.36]
[1735656832849,12.30741857,197.59,197.55,2.534]
[1735656833153,14.84101857,197.59,197.55,2.534]
[1735656834149,2.534,197.56,197.48,3.36]
[1735656834456,12.30741857,197.56,197.47,1.533]
[1735656834645,2.5344,197.54,197.49,2.5348]
[1735656835651,2.5345,197.52,197.48,2.535]
[1735656836360,12.30741857,197.53,197.49,2.5349]
[1735656836657,12.30741857,197.56,197.47,1.533]
[1735656837261,2.5344,197.53,197.48,2.5349]
[1735656837557,12.30741857,197.56,197.48,2.5349]
[1735656837759,2.5346,197.51,197.48,2.5349]